Cogmind - Beta 13 @@@ ROGUE MODE // 2024.04.03 @ 19:30:31 Player: Civin Result: Destroyed by as-29134 with Assembled Blade Performance ------------- Evolutions (0) 0 Regions Visited (4) 800 Robots Destroyed (7) 35 Value Destroyed (157) 157 Prototype IDs (0) 0 Alien Tech Used (0) 0 Bonus (300) 300 TOTAL SCORE: 1292 Bonus ------- Aligned with FarCom 300 Cogmind --------- Core Integrity 0/250 Matter 266/300 Energy 69/125 System Corruption 0% Temperature Cool (40) Movement Walking (120) Location -9/Mines Parts ------- > --- POWER (1) -------- Light Ion Engine > --- PROPULSION (2) --- Aluminum Leg > --- UTILITY (2) ------ Small Storage Unit ECM Suite > --- WEAPON (2) ------- (None) > --- INVENTORY (8) ---- Light Ion Engine XL Autogun Array Peak State ------------ > --- POWER ------------ Light Ion Engine > --- PROPULSION ------- Aluminum Leg Aluminum Leg > --- UTILITY ---------- Small Storage Unit ECM Suite > --- WEAPON ----------- Assault Rifle Light Assault Rifle > --- INVENTORY -------- Ion Engine Light Ion Engine Light Ion Engine Aluminum Leg XL Autogun Array [Rating: 11] Favorites ----------- Power Light Ion Engine Engine Light Ion Engine Propulsion Aluminum Leg Leg Aluminum Leg Utility Small Storage Unit Device ECM Suite Storage Small Storage Unit Weapon Light Assault Rifle Ballistic Gun Light Assault Rifle Build | -11 -10 -10 -10 -9 ------- Run | Yrd Mat Min Exi Min Slots Evolved . | . . . . . Power . | . . . . . Propulsion . | . . . . . Utility . | . . . . . Weapon . | . . . . . Parts Attached 14 | 3 6 . 2 3 Power 3 | . 1 . . 2 Engine 3 | . 1 . . 2 Core . | . . . . . Reactor . | . . . . . Propulsion 3 | . 2 . . 1 Treads . | . . . . . Leg 3 | . 2 . . 1 Wheel . | . . . . . Hover . | . . . . . Flight . | . . . . . Utility 2 | 1 1 . . . Device 1 | . 1 . . . Storage 1 | 1 . . . . Processor . | . . . . . Hackware . | . . . . . Protection . | . . . . . Artifact . | . . . . . Weapon 6 | 2 2 . 2 . Energy Gun . | . . . . . Energy Cannon . | . . . . . Ballistic Gun 6 | 2 2 . 2 . Ballistic Cannon . | . . . . . Launcher . | . . . . . Special Weapon . | . . . . . Impact Weapon . | . . . . . Slashing Weapon . | . . . . . Piercing Weapon . | . . . . . Special Melee Weapon . | . . . . . Unidentified Prototypes . | . . . . . Parts Lost 6 | . . . . 6 Power 2 | . . . . 2 Propulsion 2 | . . . . 2 Utility . | . . . . . Weapon 2 | . . . . 2 Highest Loss Streak 6 | . . . . 6 To Critical Strikes . | . . . . . Average Slot Usage (%) 98 | . 93 100 99 85 Engine 13 | . 14 14 14 7 Leg 27 | . 26 28 28 28 Device 13 | . 9 14 14 14 Storage 14 | . 14 14 14 14 Ballistic Gun 27 | . 28 28 27 21 Naked Turns . | . . . . . Heaviest Build 13 | 8 13 13 13 13 Greatest Support 20 | 3 20 20 20 20 Greatest Overweight (x) 2 | 2 . . . . Average Overweight (x) . | 1 . . . . Largest Inventory Capacity 8 | 8 8 8 8 8 Average Capacity 7 | 7 8 8 8 8 Most Carried 8 | 5 7 8 8 8 Average Carried 7 | 3 3 7 7 7 Final Capacity 8 | 8 8 8 8 8 Final Carried 8 | 5 7 8 8 5 Class Distribution -------------------- 100% | Mutant Dominant Class ---------------- Mutant | -10/Materials Mutant | -10/Mines Mutant | -10/Exiles Mutant | -9/Mines Resources | -11 -10 -10 -10 -9 ----------- Run | Yrd Mat Min Exi Min Matter Collected 354 | 217 129 8 . . Remotely . | . . . . . Salvage Created 219 | . 163 37 . 19 Parts 11 | . 9 2 . . Haulers Intercepted . | . . . . . Recyclers Shooed . | . . . . . Parts Field Recycled . | . . . . . Retrieved Matter . | . . . . . Parts Self-Destructed . | . . . . . Prevented . | . . . . . Kills | -11 -10 -10 -10 -9 ------- Run | Yrd Mat Min Exi Min Combat Hostiles Destroyed 7 | . 4 2 . 1 Guns 7 | . 4 2 . 1 Classes Destroyed 4 | . 1 1 . 2 Worker 1 | . . . . 1 Swarmer 2 | . . 2 . . Grunt 4 | . 4 . . . Assembled 1 | . . . . 1 Best Kill Streak 4 | . 4 2 . 2 Combat Bots Only 4 | . 4 2 . 1 Max Kills in Single Turn 1 | . 1 1 . 1 Gunslinging . | . . . . . Exploded . | . . . . . Melee . | . . . . . Uniques/NPCs Destroyed . | . . . . . Combat | -11 -10 -10 -10 -9 -------- Run | Yrd Mat Min Exi Min Hostile Shots Fired 84 | . 28 . . 56 Missed 20 | . 5 . . 15 Damage Taken 883 | . 250 . . 633 Core 260 | . 54 . . 206 Absorbed by Shields . | . . . . . Core Remaining (%) 100 | 100 . . . . Volleys Fired 23 | . 14 2 . 7 Largest 2 | . 2 2 . 2 Hottest 40 | . 40 40 . 40 Shots Fired 43 | . 28 4 . 11 Gun 43 | . 28 4 . 11 Cannon . | . . . . . Launcher . | . . . . . Special . | . . . . . Kinetic 43 | . 28 4 . 11 Thermal . | . . . . . Explosive . | . . . . . Electromagnetic . | . . . . . Robot Hit Streak 12 | . 12 2 . 3 Robot Miss Streak 5 | . 2 1 . 5 Penetration Max . | . . . . . Secondary Targets 2 | . 1 . . 1 Max Gunslinging Chain 1 | . 1 . . 1 Shots Hit Robots 28 | . 22 2 . 4 Core Hits 13 | . 7 2 . 4 Critical Kills . | . . . . . Critical Parts Destroyed . | . . . . . Critical Strikes . | . . . . . Melee Attacks . | . . . . . Impact . | . . . . . Slashing . | . . . . . Piercing . | . . . . . Sneak Attacks . | . . . . . Combat Hostiles . | . . . . . Follow-up Attacks . | . . . . . Damage Inflicted 326 | . 225 30 . 71 Guns 317 | . 225 24 . 68 Cannons . | . . . . . Explosions . | . . . . . Melee . | . . . . . Ramming 9 | . . 6 . 3 Kinetic 317 | . 225 24 . 68 Thermal . | . . . . . Explosive . | . . . . . Electromagnetic . | . . . . . Impact . | . . . . . Slashing . | . . . . . Piercing . | . . . . . Highest Corruption . | . . . . . Average Corruption . | . . . . . Corruption Purged . | . . . . . Corruption Blocked . | . . . . . Overload Shots . | . . . . . Overflow Damage . | . . . . . Projectiles . | . . . . . Explosions . | . . . . . Melee . | . . . . . Knockbacks . | . . . . . Impact . | . . . . . Kinetic . | . . . . . Secondary . | . . . . . Self-Inflicted Damage . | . . . . . Shots . | . . . . . Rammed . | . . . . . Targets Rammed 2 | . . 1 . 1 Kicked 2 | . . 1 . 1 Crushed . | . . . . . Highest Temperature 30 | . 12 . . 30 Average Temperature 8 | . 6 . . 14 Received Heat Transfer 278 | . 138 . . 140 Siege Activations . | . . . . . Robots Corrupted . | . . . . . Combat Hostiles . | . . . . . Parts Fried . | . . . . . Impact Corruptions . | . . . . . Robots Melted . | . . . . . Combat Hostiles . | . . . . . Parts Melted . | . . . . . Heat Transferred . | . . . . . Parts Sabotaged . | . . . . . Parts Stolen . | . . . . . Parts Stripped . | . . . . . Power Chain Reactions . | . . . . . Alert | -11 -10 -10 -10 -9 ------- Run | Yrd Mat Min Exi Min Peak Influence 100 | . 100 89 . 5 Initial 39 | . . 39 . . Average 44 | . 40 86 . 1 Maximum Alert Level . | . . . . . Low Security (%) 100 | 100 100 100 . 100 Level 1 . | . . . . . Level 2 . | . . . . . Level 3 . | . . . . . Level 4 . | . . . . . Level 5 . | . . . . . High Security . | . . . . . Max Security . | . . . . . Squads Dispatched 2 | . 2 . . . Investigation 2 | . 2 . . . Extermination . | . . . . . Reinforcement . | . . . . . Assault . | . . . . . Garrison . | . . . . . Intercept . | . . . . . Searches Triggered . | . . . . . Construction Impeded . | . . . . . Haulers Reinforced . | . . . . . Active Scanning Responses . | . . . . . Cargo Convoy Interrupts . | . . . . . Stealth | -11 -10 -10 -10 -9 --------- Run | Yrd Mat Min Exi Min Distress Signals 1 | . 1 . . . Communications Jammed . | . . . . . Distress Signals . | . . . . . Times Spotted 24 | . 4 3 . 17 Peak Tracking Total 20 | . 3 3 . 20 Tactical Retreats 1 | . . 1 . . Traps | -11 -10 -10 -10 -9 ------- Run | Yrd Mat Min Exi Min Traps Triggered . | . . . . . Indirectly . | . . . . . Trap Hack Attempts . | . . . . . Triggered . | . . . . . Disarmed . | . . . . . Reprogrammed . | . . . . . Reused . | . . . . . Traps Extracted . | . . . . . Installed . | . . . . . Triggered . | . . . . . Machines | -11 -10 -10 -10 -9 ---------- Run | Yrd Mat Min Exi Min Machines Disabled . | . . . . . Max in Single Turn . | . . . . . Machines Repaired . | . . . . . Machines Dismantled . | . . . . . Machines Sabotaged . | . . . . . Overloaded Fab Kills . | . . . . . Hacking | -11 -10 -10 -10 -9 --------- Run | Yrd Mat Min Exi Min Machines Accessed . | . . . . . Terminals . | . . . . . Fabricators . | . . . . . Repair Stations . | . . . . . Recycling Units . | . . . . . Scanalyzers . | . . . . . Garrison Access . | . . . . . Total Hacks . | . . . . . Successful . | . . . . . Failed . | . . . . . Catastrophic . | . . . . . Database Lockouts . | . . . . . Manual 1 | . . . 1 . Terminals . | . . . . . Fabricators . | . . . . . Repair Stations . | . . . . . Recycling Units . | . . . . . Scanalyzers . | . . . . . Garrison Access . | . . . . . Terminal Hacks . | . . . . . Fabricator Hacks . | . . . . . Repair Station Hacks . | . . . . . Recycling Unit Hacks . | . . . . . Scanalyzer . | . . . . . Garrison Access Hacks . | . . . . . Unauthorized Hacks . | . . . . . Terminals . | . . . . . Fabricators . | . . . . . Repair Stations . | . . . . . Recycling Units . | . . . . . Scanalyzers . | . . . . . Garrison Access . | . . . . . Data Cores Recovered . | . . . . . Used . | . . . . . Hacking Detections . | . . . . . Full Trace Events . | . . . . . Feedback Events . | . . . . . Feedback Blocked . | . . . . . Robot Schematics Acquired . | . . . . . Robots Built . | . . . . . Authchips . | . . . . . Time . | . . . . . Total Robot Build Rating . | . . . . . Part Schematics Acquired . | . . . . . Parts Built . | . . . . . Authchips . | . . . . . Time . | . . . . . Total Part Build Rating . | . . . . . Parts Repaired . | . . . . . Time . | . . . . . Parts Recycled . | . . . . . Recycled Matter . | . . . . . Retrieved Matter . | . . . . . Retrieved Components . | . . . . . Parts Scanalyzed . | . . . . . Part Schematics Acquired . | . . . . . Parts Damaged . | . . . . . Bothacking | -11 -10 -10 -10 -9 ------------ Run | Yrd Mat Min Exi Min Used RIF Installer . | . . . . . Robots Hacked . | . . . . . Non-combat . | . . . . . Combat . | . . . . . Robot Hacks Applied . | . . . . . Relay Couplers Released . | . . . . . Fabnet Peak Effective % . | . . . . . Robots Rewired . | . . . . . Allies Hacked . | . . . . . Hacks Repelled . | . . . . . Allies | -11 -10 -10 -10 -9 -------- Run | Yrd Mat Min Exi Min Total Allies . | . . . . . Largest Group . | . . . . . Highest-Rated Group . | . . . . . Highest-Rated Ally . | . . . . . Total Orders . | . . . . . Ally Attacks . | . . . . . Total Damage . | . . . . . Kills . | . . . . . Allies Corrupted . | . . . . . Allies Melted . | . . . . . Turrets Deployed 1 | . . . 1 . Intel | -11 -10 -10 -10 -9 ------- Run | Yrd Mat Min Exi Min Robot Analysis Total . | . . . . . Derelict Logs Recovered . | . . . . . Drone Launches . | . . . . . Drone Recoveries . | . . . . . Exploration | -11 -10 -10 -10 -9 ------------- Run | Yrd Mat Min Exi Min Turns Passed 1186 | 86 161 130 787 22 Spaces Moved 896 | 55 88 102 650 1 Core 55 | 55 . . . . Treads . | . . . . . Legs 841 | . 88 102 650 1 Wheels . | . . . . . Hover . | . . . . . Flight . | . . . . . Fastest Speed 50 | 50 120 120 120 120 Average Speed 121 | 140 120 120 120 120 Slowest Speed 150 | 150 120 120 120 120 Overloaded Moves . | . . . . . Propulsion Burnouts . | . . . . . Robots Hopped . | . . . . . Cave-ins Triggered . | . . . . . Exploration Rate (%) 28 | 4 8 37 89 5 Regions Visited 4 Branch Regions 3 Pre-discovered Areas . | . . . . . Known Exits Taken . | . . . . . Unknown Exits Taken 4 | 1 1 1 1 . Scrap Searched 1 | . . 1 . . Spaces Dug . | . . . . . Terrain Destroyed . | . . . . . Melee . | . . . . . Projectile . | . . . . . AOE . | . . . . . Terrain Rammed . | . . . . . Walls Destroyed . | . . . . . Machines Disabled . | . . . . . Actions | -11 -10 -10 -10 -9 --------- Run | Yrd Mat Min Exi Min Total 958 | 62 119 106 659 12 Wait 4 | . 2 1 1 . Move 892 | 54 87 101 649 1 Hop . | . . . . . Pick Up 14 | 5 7 1 1 . Fast Attach 5 | 3 . . 2 . Attach 9 | . 6 . . 3 Detach 2 | . 2 . . . Swap . | . . . . . Drop 7 | . 1 . 6 . Fire 23 | . 14 2 . 7 Melee . | . . . . . Ram . | . . . . . Kick 2 | . . 1 . 1 Crush . | . . . . . Escape Stasis . | . . . . . Rewire . | . . . . . Trap . | . . . . . Miscellaneous . | . . . . . Route ------- -11/Scrapyard -10/Materials -10/Mines -10/Exiles -9/Mines History --------- Turn | Location | Event 2 | -11/Scrapyard | Met Revision 17 11 | -11/Scrapyard | Discovered new exit (range 15) 87 | -11/Scrapyard | Entered Materials 95 | -10/Materials | Discovered new exit (range 7) 227 | -10/Materials | Met 8R-AWN 248 | -10/Materials | Entered Mines 250 | -10/Mines | Followed 8R-AWN into the Mines 307 | -10/Mines | Build established: Mutant 374 | -10/Mines | Discovered new exit (range 5) 378 | -10/Mines | Entered Exiles 420 | -10/Exiles | Welcomed by 8R-AWN 450 | -10/Exiles | Met EX-HEX 515 | -10/Exiles | Met EX-DEC 571 | -10/Exiles | Visited The Gauntlet 801 | -10/Exiles | Discovered new exit (range 14) 912 | -10/Exiles | Met EX-BIN 935 | -10/Exiles | Aligned with FarCom system 936 | -10/Exiles | Given EX-Vault access code 988 | -10/Exiles | Opened EX-Vault 998 | -10/Exiles | DAS Turret deployed 1004 | -10/Exiles | Found Prototype Ballistic Gun 1039 | -10/Exiles | Warned to stay clear of 0b10 Research branches 1165 | -10/Exiles | Left Exiles lab with XL Autogun Array 1165 | -10/Exiles | Entered Mines 1166 | -9/Mines | Assembled infested the area 1179 | -9/Mines | Core integrity fell below 50% 1187 | -9/Mines | Core integrity fell below 20% 1187 | -9/Mines | Destroyed by as-29134 with Assembled Blade Last Messages --------------- K-01 Serf collects debris. K-01 Serf cleans the Laser Drill. K-01 Serf collects debris. Laser Drill disabled. K-01 Serf knocked back. Aluminum Leg destroyed. K-01 Serf destroyed. K-01 Serf collects debris. as-99097 destroyed. Switching to secondary target: as-65777. K-01 Serf collects debris. Assault Rifle destroyed. Knocked back. K-01 Serf collects debris. Aluminum Leg destroyed. Ion Engine destroyed. K-01 Serf collects debris. Lgt. Assault Rifle destroyed. as-60095 destroyed. Kicked as-29134. Map ----- +----------------------------------------------------+ | ??????????????????????????????????????? | | ??????????????????????????????????????? | | ??????????????????????????????????????? | | ??????????????????????????????????????? | | ??????????????????????????????????????? | | ??????????????????????????????????????? | | ??????????????????????????????????????? | | ??????????????????????????????????????? | | ??????????????????????????????????????? | | ?????????????????????????? ???????????? | | ?????????????????????????? #??????????? | | ?????????????????????????dd ????????? | | ?????????????????????????? ????????? | | ?????????????????????????? ????????? | | ?????????????????????????? ?????????? | | ?????????????????????????? ?????????? | | ?????????????????????????# ?????????? | | ?????????????????????????#$ #?????????? | | ?????????????????????????#a #?????????? | | ?????????????????????????# #?????????? | | ?????????????????????????# a#?????????? | | ?????????????????????????#aa#?????????? | | ??????????????????????####aa######????? | | ??????????????????????# a% #????? | | ??????????????????????# aaa """ #????? | | ??????????????????????# a@a "" #????? | | ??????????????????????# k a """ #????? | | ??????????????????????# #????? | | ??????????????????????# #????? | | ??????????????????????############????? | | ??????????????????????????????????????? | | ??????????????????????????????????????? | | | | | | | | | | | | | | | | | | | | | | | | | | | | | | | | | | | | | +----------------------------------------------------+ Best States ------------- Heat Dissipation 25 Energy Generation 10 Energy Capacity 250 Matter Stores 300 Matter Capacity 300 Sight Range 16 Terrain Scan Density 10 ECM Strength 1 Evasion (%) 55 Item Schematics ----------------- None Robot Schematics ------------------ None Fabricated ------------ Nothing Alien Tech Used ----------------- None Achievements -------------- Hunted Tourist Challenges ------------ None Game ------ Seed WardroneClaymoresNullifier Manual? 0 Play Time 00:12:47 Cumulative 2.5 hours Start 2024.04.03 @ 19:14:33 End 2024.04.03 @ 19:30:31 Sessions 1 Manual Loads 0 Difficulty Rogue Special Mode None Game No. 7 Rogue 5 Adventurer 2 Explorer 0 Win Type - Total 0 Types 0/0/0/0/0/0/0/0/0 Lore% 2 Gallery% 6 Achievement% 8 Wizard Run 0 Options --------- Layout 1 ASCII 0 Keyboard 0 Movement Numpad Keybinds 0 Fullscreen 1 Font 24/Smallcaps Map View 50x35 Zoom Use 0% Tactical HUD 0 Map Filters NONE Filters NONE Steam 1 RUN: 6f1158a5-a613-4b8c-b445-59932005b624